bitfinex/quotes_ETHUSD_20251128
["timestamp","ask_amount","ask_price","bid_price","bid_amount"]
[1764328697621,0.0996,3030.8,3029.2,0.219]
[1764328697823,0.4959,3030.7,3029.1,6.60262124]
[1764328698011,0.219,3030.6,3029.1,10.39153186]
[1764328698215,0.219,3030.6,3029.2,1.56768319]
[1764328698418,3.29978551,3030.5,3029.3,6.60218532]
[1764328698802,0.1816,3031.2,3029.4,0.03300983]
[1764328699008,0.0996,3030.7,3029.3,3.30109266]
[1764328699315,0.0996,3030.4,3029.3,3.30109266]
[1764328699526,0.0996,3030.4,3029.3,6.60218532]
[1764328699725,0.4929,3030.3,3029.1,3.30122368]
[1764328699912,0.4929,3030.3,3029.1,6.6025343]
[1764328700113,0.219,3030.5,3029.2,1.19989544]
[1764328700318,0.4929,3030.8,3029.3,0.7066]
[1764328700616,0.4929,3030.7,3029.4,6.82096738]
[1764328701138,0.0996,3030.5,3029.4,3.30098369]
[1764328701437,0.0996,3030.5,3029.4,6.60196738]
[1764328701638,0.4929,3030.4,3029.4,6.60196738]
[1764328701937,0.4949,3030.4,3029.4,6.60196738]
[1764328702512,0.4949,3030.4,3029.1,0.219]
[1764328702513,0.4949,3030.4,3029.2,9.90360489]
[1764328702846,0.002,3030.4,3029.3,0.52061092]
[1764328703022,0.002,3030.4,3029.3,6.92580889]
[1764328703222,0.002,3030.4,3029.4,0.4876]
[1764328703543,0.002,3030.4,3029.5,0.25200874]
[1764328704038,0.002,3030.4,3029.7,0.405504]
[1764328704241,0.002,3030.4,3029.9,0.405504]
[1764328704439,0.002,3030.4,3030.0,0.9000702]
[1764328704629,0.002,3030.4,3030.1,6.60044222]
[1764328704936,0.002,3030.4,3030.1,6.81944222]
[1764328705347,0.002,3030.4,3030.1,3.30022111]
[1764328705549,0.002,3030.4,3030.2,0.52060112]
[1764328705712,0.002,3030.4,3030.2,0.03300112]
[1764328705913,0.002,3030.4,3030.1,3.30022111]
[1764328706137,0.002,3030.4,3030.1,6.60044222]
[1764328706338,0.002,3030.4,3030.2,0.4876]
[1764328706536,0.002,3030.4,3030.3,3.3000033]
[1764328707241,0.002,3030.4,3030.3,3.7876033]
[1764328707441,0.002,3030.4,3030.2,3.519109]
[1764328707634,0.002,3030.4,3029.7,0.219]
[1764328707938,0.002,3030.4,3029.8,1.01212973]
[1764328708144,0.002,3030.4,3029.7,0.219]
[1764328708552,0.002,3030.4,3029.8,9.90164367]
[1764328708909,0.002,3030.4,3029.9,0.03300438]
[1764328709325,0.4949,3030.4,3029.1,3.30131062]
[1764328709630,0.30148628,3030.3,3029.1,6.79402124]
[1764328709838,0.30148628,3030.3,3029.1,11.90285378]
[1764328710043,0.002,3030.4,3029.2,0.4876]
[1764328710409,0.002,3030.4,3029.3,0.03301092]
[1764328710610,0.002,3030.4,3029.4,9.90295107]
[1764328710820,0.002,3030.4,3029.5,0.03300874]
[1764328711144,0.002,3030.4,3029.4,6.60196738]
[1764328711313,0.002,3030.4,3029.5,0.73960874]
[1764328711639,0.002,3030.4,3029.5,0.4876]
[1764328711850,0.002,3030.4,3029.6,0.218]
[1764328712094,0.002,3030.4,3029.7,0.03300656]
[1764328712269,0.002,3030.4,3029.6,0.218]
[1764328712470,0.002,3030.4,3029.6,2.75920895]
[1764328712614,0.002,3030.4,3029.8,9.90164367]
[1764328712815,0.002,3030.4,3029.9,0.03300438]
[1764328713021,0.002,3030.4,3029.8,7.08869578]
[1764328713242,0.002,3030.4,3029.9,6.89279797]
[1764328713442,0.002,3030.4,3030.0,1.89744416]
[1764328713749,0.002,3030.4,3030.1,0.03300221]
[1764328714046,0.002,3030.4,3030.1,0.52060221]
[1764328714342,0.002,3030.4,3030.1,0.4876]
[1764328714745,0.002,3030.4,3030.2,6.6002244]
[1764328715946,0.002,3030.4,3030.1,3.30017605]
[1764328716147,0.002,3030.4,3030.1,6.60039716]
[1764328716943,0.002,3030.4,3030.1,3.30017605]
[1764328717450,0.002,3030.4,3030.2,6.60707876]
[1764328717451,0.0012,3030.4,3030.2,6.60707876]
[1764328717650,0.0012,3030.4,3030.1,6.95221477]
[1764328718548,0.0012,3030.4,3030.1,3.30017605]
[1764328718853,0.4941,3030.4,3029.6,0.218]
[1764328719014,0.0012,3030.4,3029.6,0.218]
[1764328719544,0.0012,3030.4,3029.5,10.39014972]
[1764328719855,0.0012,3030.4,3029.7,0.03300656]
[1764328720357,0.0012,3030.4,3030.0,0.001]
[1764328721021,0.4728,3030.4,3030.0,0.001]
[1764328721241,0.30303137,3030.3,3030.0,0.001]
[1764328721455,0.30303137,3030.2,3030.0,0.001]
[1764328721650,0.30303137,3030.1,3030.0,0.001]
[1764328722545,0.0012,3030.4,3030.0,0.001]
[1764328722750,0.3031256,3030.3,3030.0,6.60166006]
[1764328723050,0.0012,3030.4,3030.1,0.03300221]
[1764328723350,0.30311994,3030.3,3030.0,6.60166006]
[1764328723646,0.30311994,3030.2,3030.0,0.001]
[1764328723846,0.4728,3030.4,3030.0,0.001]
[1764328723847,0.3807352,3030.1,3030.0,0.001]
[1764328724420,0.8483352,3030.1,3030.0,0.001]
[1764328724846,0.3807352,3030.1,3030.0,0.001]
[1764328725048,0.8483352,3030.1,3030.0,0.001]
[1764328725424,0.3807352,3030.1,3030.0,0.001]
[1764328725638,0.3031352,3030.1,3030.0,0.001]
[1764328725950,4.14865631,3030.1,3030.0,0.001]
[1764328726151,5.45342292,3030.1,3030.0,0.001]
[1764328726643,5.35382292,3030.1,3030.0,0.001]
[1764328726848,6.32466454,3030.1,3030.0,0.001]
[1764328727528,5.45342292,3030.1,3030.0,0.001]
[1764328727855,6.32580771,3030.1,3030.0,0.001]
[1764328728153,2.9259866,3030.1,3030.0,0.001]
[1764328728451,1.54707245,3030.1,3030.0,0.001]
[1764328728650,1.76507245,3030.1,3030.0,0.001]
[1764328729150,5.06529356,3030.1,3030.0,0.001]
[1764328729544,1.86467245,3030.1,3030.0,0.001]
[1764328729757,5.16489356,3030.1,3030.0,0.001]
[1764328729947,4.94689356,3030.1,3030.0,0.001]
[1764328730146,1.86467245,3030.1,3030.0,0.001]
[1764328730755,5.35136081,3030.1,3030.0,0.001]
[1764328732569,16.02480893,3030.1,3028.1,3.30240084]
[1764328732773,6.60174946,3029.5,3028.3,6.60436548]
[1764328732941,1.8889074,3029.4,3028.4,0.03302073]
[1764328733135,1.10137245,3029.3,3028.4,0.03302073]
[1764328733349,0.3031352,3029.2,3028.4,0.03302073]
[1764328733554,0.3031352,3029.1,3028.4,0.03302073]
[1764328733753,0.3031352,3029.0,3028.4,0.03302073]
[1764328734072,0.5201352,3028.9,3028.4,0.03302073]
[1764328734369,0.217,3028.9,3028.4,0.03302073]
[1764328734667,0.1809,3029.6,3028.4,0.03302073]
[1764328734668,0.30209401,3029.3,3028.8,0.4759]
[1764328734871,0.217,3029.4,3029.0,6.60283922]
[1764328735258,0.217,3029.4,3029.1,0.1836]
[1764328736278,3.48670862,3030.1,3029.3,0.4759]
[1764328736461,0.217,3029.8,3029.3,0.4759]
[1764328736771,0.25001216,3029.8,3029.0,5.89657123]
[1764328736970,0.25001216,3029.8,3029.1,0.0330131]
[1764328737558,0.55216535,3029.8,3029.1,0.0330131]
[1764328738254,0.55216535,3029.8,3029.0,0.03301419]
[1764328738455,0.55216535,3029.8,3029.0,1.02677221]
[1764328738684,0.55216535,3029.8,3029.0,0.03301419]
[1764328739080,0.55216535,3029.8,3029.1,6.60262124]
[1764328739592,0.55216535,3029.8,3029.2,0.03301201]
[1764328739757,0.55216535,3029.8,3028.5,3.3019041]
[1764328739758,0.1995,3029.7,3029.0,3.30137514]
[1764328740092,0.44951216,3029.7,3029.1,0.0330131]
[1764328740457,0.002,3030.1,3029.2,6.11947876]
[1764328740657,0.3021381,3030.0,3029.2,6.11947876]
[1764328740885,0.1995,3029.9,3029.1,0.66368078]
[1764328741185,0.3021381,3030.0,3029.2,9.90360489]
[1764328741391,0.3021381,3030.0,3029.3,1.07520857]
[1764328741573,0.3013381,3030.0,3029.3,1.07520857]
[1764328742671,0.03501216,3030.1,3029.3,1.07520857]
[1764328742874,0.002,3030.1,3029.3,1.07520857]
[1764328743062,0.03301216,3030.0,3029.3,1.07520857]
[1764328743384,0.002,3030.1,3029.4,6.60196738]
[1764328743595,0.03301216,3030.0,3029.4,6.60196738]
[1764328743800,0.002,3030.1,3029.4,6.60196738]
[1764328744003,0.03301216,3030.0,3029.4,6.60196738]
[1764328744172,0.4655,3029.5,3029.0,3.30235993]
[1764328744575,0.50461216,3029.4,3029.0,0.001]
[1764328744792,0.4655,3029.1,3029.0,0.001]
[1764328745013,0.4655,3029.1,3029.0,3.30241961]
[1764328745214,0.4655,3029.1,3029.0,0.001]
[1764328746115,0.4716,3029.4,3029.0,0.001]
[1764328746317,0.03301216,3029.7,3029.0,0.001]
[1764328747126,0.03301216,3029.7,3029.0,0.21881419]
[1764328747426,0.03301216,3029.7,3029.1,3.30131062]
[1764328747585,0.4716,3029.6,3029.1,6.60262124]
[1764328747786,0.03301216,3029.5,3029.1,6.60262124]
[1764328748141,0.03501216,3030.1,3029.4,0.1848]
[1764328748283,0.4716,3030.0,3029.0,0.001]
[1764328748480,0.4655,3029.1,3029.0,0.001]
[1764328748881,0.217,3029.3,3029.0,0.001]
[1764328749081,0.03301216,3029.7,3029.0,0.001]
[1764328749082,0.217,3029.5,3029.0,0.001]
[1764328749378,0.4655,3029.1,3029.0,0.001]
[1764328749806,0.9371,3029.1,3029.0,0.001]
[1764328750385,0.03301216,3029.4,3029.0,0.001]
[1764328750584,0.217,3029.3,3029.0,0.001]
[1764328750784,0.6796,3029.3,3029.0,0.001]
[1764328750985,1.07765477,3029.3,3029.0,0.001]
[1764328751289,0.4561,3029.1,3029.0,0.001]
[1764328751824,4.22001062,3029.1,3029.0,0.001]
[1764328752028,4.91680463,3029.1,3029.0,0.001]
[1764328752448,4.22001062,3029.1,3029.0,0.001]
[1764328752612,5.80002342,3029.1,3029.0,0.001]
[1764328753721,0.0996,3028.8,3028.7,0.001]
[1764328753920,1.27243329,3028.8,3028.7,0.001]
[1764328754121,2.43166454,3028.8,3028.7,0.001]
[1764328755567,5.73330215,3028.8,3028.7,0.001]
[1764328755866,6.16173309,3028.8,3028.7,0.001]
[1764328756917,6.19474525,3028.8,3028.7,0.001]
[1764328757314,6.19474525,3028.8,3028.0,0.001]
[1764328757315,12.79802047,3028.8,3028.0,0.001]
[1764328757547,3.85810084,3028.1,3028.0,0.001]
[1764328757744,5.09247314,3028.1,3028.0,0.001]
[1764328757931,5.55507314,3028.1,3028.0,0.001]
[1764328758316,0.97443329,3028.1,3028.0,0.001]
[1764328758527,4.84363413,3028.1,3028.0,0.001]
[1764328758722,1.54123329,3028.1,3028.0,0.001]
[1764328759218,4.84363413,3028.1,3028.0,0.001]
[1764328759862,1.22563329,3028.1,3028.0,0.001]
[1764328760019,4.74403413,3028.1,3028.0,0.001]
[1764328760223,5.32799754,3028.1,3028.0,0.001]
[1764328760626,5.32799754,3028.1,3026.4,3.30421413]
[1764328760627,12.62679042,3028.1,3026.3,0.1848]
[1764328760824,0.6763,3027.8,3026.4,0.21884255]
[1764328761124,0.97863329,3027.8,3026.4,0.21884255]
[1764328761324,1.54543329,3027.8,3026.4,0.1858]
[1764328761558,0.216,3027.8,3027.0,0.1858]
[1764328761752,1.1791,3027.8,3026.5,9.9124401]
[1764328761948,1.1791,3027.8,3026.7,0.1858]
[1764328762443,0.7119,3027.8,3026.7,0.1858]
[1764328763256,0.7119,3027.8,3026.8,0.03303819]
[1764328763257,0.216,3027.8,3026.8,0.03303819]
[1764328763421,0.216,3027.8,3027.0,6.60720184]
[1764328763826,0.216,3027.8,3027.1,0.03303491]
[1764328764435,0.03301216,3028.1,3027.7,0.1868]
[1764328764754,0.5955,3027.8,3027.7,0.001]
[1764328765062,1.09571216,3027.8,3027.7,0.001]
[1764328765356,1.39658261,3027.8,3027.7,0.001]
[1764328765724,4.69931066,3027.8,3027.7,0.001]
[1764328765924,1.88731368,3027.8,3027.7,0.001]
[1764328766353,1.39578261,3027.8,3027.7,0.001]
[1764328766740,4.69851066,3027.8,3027.7,0.001]
[1764328767740,0.30087045,3027.8,3027.7,0.001]
[1764328768037,0.216,3028.0,3027.7,0.1876]
[1764328768835,0.216,3028.0,3027.7,0.001]
[1764328769361,0.33389121,3027.9,3027.7,0.001]
[1764328769560,0.79677905,3027.8,3027.7,0.001]
[1764328769760,1.8451435,3027.8,3027.7,0.001]
[1764328770130,1.8451435,3027.8,3026.1,0.1866]
[1764328770131,0.0996,3027.2,3026.1,0.0938]
[1764328770338,0.0996,3026.9,3026.1,0.0938]
[1764328770549,0.1804,3026.2,3025.5,3.39899644]
[1764328770762,0.3964,3026.2,3025.5,3.39899644]
[1764328771188,0.3964,3026.2,3024.4,0.1876]
[1764328771189,0.4672,3026.1,3024.4,0.1876]
[1764328771331,0.0996,3025.7,3024.5,0.63070788]
[1764328771528,0.216,3025.6,3024.6,3.30622231]
[1764328771785,0.30041905,3025.5,3024.6,6.61244462]
[1764328772347,0.216,3025.6,3024.5,3.30633162]
[1764328772348,0.51641905,3025.6,3024.5,3.30633162]
[1764328772574,0.30041905,3025.5,3024.4,0.1876]
[1764328772734,0.30041905,3025.4,3024.4,0.1876]
[1764328772936,0.51641905,3025.4,3024.6,6.11947876]
[1764328773132,0.216,3025.4,3024.4,0.1876]
[1764328773361,0.216,3025.4,3024.1,9.92025519]
[1764328773362,0.7828,3025.4,3024.0,0.0938]
[1764328773567,0.0996,3024.8,3024.0,0.0938]
[1764328773782,0.216,3024.7,3024.0,0.0938]
[1764328773932,0.3964,3024.7,3024.0,3.4006436]
[1764328774283,0.1804,3024.9,3024.1,0.1876]
[1764328774578,0.29975225,3025.2,3024.1,0.1876]
[1764328775209,0.29975225,3025.3,3025.1,0.1876]
[1764328775379,0.5156241,3025.7,3024.3,6.11947876]
[1764328775581,0.5156241,3025.7,3024.1,0.1876]
[1764328775582,0.2996241,3025.6,3024.5,6.61266324]
[1764328775893,0.2996241,3025.5,3024.5,10.78662118]
[1764328776097,0.2996241,3025.4,3024.5,6.61266324]
[1764328776399,0.2996241,3025.6,3024.6,0.03306222]
[1764328776579,0.2996241,3025.5,3024.1,3.30676895]
[1764328776783,0.0996,3025.1,3024.1,3.30676895]
[1764328776983,0.216,3025.0,3024.1,3.30676895]
[1764328777186,0.0996,3024.8,3024.1,3.30676895]
[1764328777379,3.30497417,3025.8,3024.1,3.30676895]
[1764328777380,0.29941953,3024.9,3024.2,0.22066659]
[1764328777586,0.4672,3025.5,3024.8,3.3060037]
[1764328777587,0.216,3025.0,3024.8,3.3060037]
[1764328777898,0.1804,3025.9,3024.1,0.3400569]
[1764328777899,0.216,3025.2,3024.9,0.1876]
[1764328778278,0.216,3025.6,3025.1,0.1876]
[1764328778494,0.29948964,3025.5,3025.1,0.1876]
[1764328778704,0.216,3025.6,3025.1,0.1876]
[1764328779005,0.29960554,3025.5,3025.1,0.1876]
[1764328779301,0.29966989,3025.4,3025.2,0.03305566]
[1764328779500,0.1804,3025.9,3025.1,0.3752]
[1764328779501,0.29966989,3025.7,3025.1,0.3752]
[1764328779710,0.29966989,3025.6,3025.3,0.1876]
[1764328779869,0.29966989,3025.5,3025.3,0.1876]
[1764328780079,0.2996859,3025.8,3025.3,0.1876]
[1764328780279,0.2996859,3025.7,3025.3,0.1876]
[1764328780501,0.2996859,3025.6,3025.3,0.1876]
[1764328780701,0.3964,3025.9,3025.3,0.55861347]
[1764328780872,0.29976651,3025.8,3025.4,0.1876]
[1764328781072,0.03301216,3026.7,3025.8,0.1876]
[1764328781299,0.29984693,3026.6,3026.0,0.1876]
[1764328781605,0.03301216,3026.7,3026.0,0.1876]
[1764328781606,0.29984693,3026.5,3026.2,6.6089485]
[1764328781899,0.03301216,3026.7,3025.7,0.0938]
[1764328781900,0.30001065,3026.4,3025.7,0.0938]
[1764328782087,0.30001065,3026.3,3025.7,6.70384064]
[1764328782304,0.30013319,3026.2,3025.7,10.67924502]
[1764328782517,0.03301216,3026.6,3025.7,10.67924502]
[1764328782692,0.30013325,3026.5,3025.7,10.67924502]
[1764328782893,0.30013325,3026.4,3025.7,10.67924502]
[1764328783215,0.30013325,3026.3,3025.7,7.5618247]
[1764328783412,0.24901216,3026.6,3025.7,7.5618247]
[1764328783713,0.30027928,3026.5,3025.7,4.25680438]
[1764328783885,0.33329144,3026.4,3025.7,7.3742247]
[1764328784085,0.30027928,3026.3,3025.8,0.75618247]
[1764328784286,0.24901216,3026.6,3025.8,0.75618247]
[1764328784484,0.30035273,3026.5,3025.8,0.75618247]
[1764328784717,0.30035273,3026.4,3025.8,0.94378247]
[1764328784919,0.30035273,3026.3,3025.8,0.94378247]
[1764328785089,0.72141216,3026.9,3025.9,1.09526434]
[1764328785290,0.30035753,3026.8,3025.9,1.09526434]
[1764328785612,0.33336969,3026.7,3026.0,9.91407798]
[1764328785808,0.30035753,3026.6,3026.0,10.10167798]
[1764328785984,0.30035753,3026.5,3026.0,10.10167798]
[1764328786327,0.30035753,3026.4,3026.1,1.30729423]
[1764328786493,0.03301216,3027.2,3026.8,0.1876]
[1764328786692,0.30056429,3027.1,3026.8,0.1876]
[1764328786892,0.30056429,3027.0,3026.8,0.1876]
[1764328787216,0.03301216,3027.7,3027.4,0.2814]
[1764328787418,0.30068825,3027.6,3027.4,0.2814]
[1764328787618,0.30068825,3027.5,3027.4,0.2814]
[1764328787788,0.03301216,3028.0,3027.4,0.2814]
[1764328787789,0.03301216,3028.0,3027.5,0.1876]
[1764328788116,0.30071091,3027.9,3027.5,0.1876]
[1764328788313,0.30071091,3027.8,3027.5,0.1876]
[1764328788612,0.002,3028.1,3027.7,0.1876]
[1764328788815,0.30066853,3028.0,3027.7,0.1876]
[1764328789016,0.30066853,3027.9,3027.7,0.1876]
[1764328789193,0.002,3028.1,3027.8,0.1876]
[1764328789518,0.30063215,3028.0,3027.8,0.1876]
[1764328789717,0.002,3028.1,3027.8,0.1876]
[1764328789897,0.30064528,3028.0,3027.8,6.79303938]
[1764328790095,0.0012,3028.1,3027.8,6.79303938]
[1764328790517,0.0012,3028.1,3027.4,0.0938]
[1764328790719,0.6719,3027.9,3027.4,3.39693143]
[1764328791014,0.30056992,3027.8,3027.4,6.70011446]
[1764328791187,0.0012,3028.1,3027.4,6.70011446]
[1764328791392,0.30050308,3028.0,3027.5,0.1876]
[1764328791598,0.0012,3028.1,3027.4,11.00362131]
[1764328791895,0.0012,3028.1,3027.4,7.70045688]
[1764328792286,0.0012,3028.1,3028.0,0.1876]
[1764328792490,0.0012,3028.1,3027.5,0.4036]
[1764328792808,0.0012,3028.1,3027.6,1.14072213]
[1764328793490,0.0012,3028.1,3027.4,6.70011446]
[1764328793694,0.0012,3028.1,3027.4,0.0938]
[1764328793913,0.30041268,3028.0,3027.4,0.0938]
[1764328794092,0.33342484,3027.9,3027.4,3.39695583]
[1764328794292,0.33342484,3027.9,3027.4,6.70012026]
[1764328794293,0.03301216,3027.9,3027.4,6.70012026]
[1764328794487,0.0012,3028.1,3027.4,3.39695583]
[1764328794693,0.33340594,3028.0,3027.4,6.70012026]
[1764328794893,0.30039378,3027.9,3027.4,6.70012026]
[1764328795088,0.03301216,3028.0,3027.4,0.0938]
[1764328795321,0.30041733,3027.9,3027.4,6.70012704]
[1764328795619,0.03421216,3028.1,3027.4,6.70012704]
[1764328795822,0.3004041,3028.0,3027.4,10.00329147]
[1764328796018,0.0012,3028.1,3027.4,10.00329147]
[1764328796219,0.30040336,3028.0,3027.4,10.00329147]
[1764328796605,0.30036347,3028.0,3027.4,10.00329147]
[1764328796805,0.30036347,3028.0,3027.4,6.70012704]
[1764328797132,0.0012,3028.1,3027.4,6.70012704]
[1764328797338,0.0012,3028.1,3027.5,0.6700127]
[1764328797711,0.0012,3028.1,3028.0,0.1876]
[1764328797917,0.0012,3028.1,3028.0,3.4901099]
[1764328798118,0.0012,3028.1,3028.0,3.6777099]
[1764328798714,0.0012,3028.1,3028.0,3.4901099]
[1764328799645,0.0012,3028.1,3028.0,4.37574234]
[1764328800749,0.0012,3028.1,3028.0,11.20613359]
[1764328801250,0.002,3028.5,3028.0,11.20613359]
[1764328801251,0.002,3028.5,3028.1,0.72559411]
[1764328801452,0.002,3028.5,3028.0,18.1312435]
[1764328801453,0.002,3028.5,3028.0,7.0086198]
[1764328801626,0.002,3028.5,3028.0,3.4901099]
[1764328801832,0.002,3028.5,3028.1,0.033024]
[1764328802019,0.002,3028.5,3028.2,3.30229179]
[1764328802327,0.002,3028.5,3028.2,6.60458358]
[1764328802526,0.002,3028.5,3028.4,0.1876]
[1764328802758,0.002,3030.0,3028.5,0.405504]
[1764328802956,0.671,3029.9,3028.6,0.1856]
[1764328803130,0.70401216,3029.9,3028.6,0.4016]
[1764328803453,0.4724,3029.8,3028.7,0.1856]
[1764328803761,0.24901216,3029.7,3028.6,0.1856]
[1764328803961,0.002,3030.0,3028.8,9.90491283]
[1764328804121,0.002,3030.0,3028.9,2.00330535]
[1764328804322,0.002,3030.0,3029.2,6.42488725]
[1764328804542,0.002,3030.0,3029.3,0.4934]
[1764328804762,0.002,3030.0,3029.9,0.1856]
[1764328805884,0.002,3030.0,3029.4,0.1856]
[1764328806044,0.002,3030.0,3029.5,9.90262419]
[1764328806241,0.002,3030.0,3029.6,1.33891861]
[1764328806441,0.002,3030.0,3029.9,0.1856]
[1764328806949,0.002,3030.0,3029.9,0.3712]
[1764328807146,0.002,3030.0,3029.9,0.776704]
[1764328807955,0.002,3030.0,3029.9,4.80273706]
[1764328808182,0.002,3030.0,3029.9,6.349714]
[1764328808770,0.002,3030.1,3029.9,6.349714]
[1764328808771,0.0012,3030.4,3030.0,1.50229811]
[1764328808951,0.0012,3030.4,3030.3,7.01599125]
[1764328809137,0.002,3030.7,3030.4,1.13109811]
[1764328809335,0.002,3030.7,3030.6,0.591104]
[1764328809535,0.002,3030.8,3030.7,0.405504]
[1764328809770,0.002,3030.8,3030.7,0.992704]
[1764328810037,0.03301216,3032.5,3030.9,1.13109811]
[1764328810259,0.03301216,3032.5,3031.0,8.51458695]
[1764328810565,0.6904,3032.6,3031.0,8.51458695]
[1764328810769,0.6904,3032.6,3031.0,8.70018695]
[1764328810970,0.002,3032.6,3031.0,8.70018695]
[1764328811550,0.002,3032.6,3032.4,6.42488725]
[1764328811886,0.002,3032.6,3032.5,0.2794]
[1764328812177,0.002,3032.6,3031.8,0.72559411]
[1764328812178,0.002,3032.6,3032.0,3.29815303]
[1764328812389,0.002,3032.6,3032.5,0.1856]
[1764328812592,0.002,3032.6,3032.5,0.4016]
[1764328812775,0.002,3032.6,3032.5,0.1856]
[1764328812957,0.002,3032.6,3032.0,13.44480861]
[1764328813157,0.002,3032.6,3032.5,0.1856]
[1764328813687,0.002,3032.6,3032.0,7.01992136]
[1764328813897,0.002,3032.6,3032.0,3.29815303]
[1764328814064,0.4633,3032.6,3031.9,6.59652362]
[1764328814492,0.0012,3032.6,3031.9,9.89478543]
[1764328814680,0.0012,3032.6,3032.0,0.1856]
[1764328814864,0.0012,3032.6,3032.5,0.1856]
[1764328815063,0.0012,3032.6,3032.5,1.03224873]
[1764328815265,0.0012,3032.6,3032.5,0.84664873]
[1764328815469,0.0012,3032.6,3032.5,1.06264873]
[1764328815867,0.0012,3032.6,3032.5,0.216]
[1764328816088,0.0012,3032.6,3032.3,0.216]
[1764328816274,0.0012,3032.6,3032.1,6.5960885]
[1764328816602,0.0012,3032.6,3032.2,0.216]
[1764328816808,0.4625,3032.6,3031.8,0.0938]
[1764328817007,0.4875,3032.2,3031.6,0.216]
[1764328817194,0.4875,3032.2,3031.6,0.24898588]
[1764328817393,0.4625,3032.6,3031.6,0.216]
[1764328817577,0.4625,3032.6,3031.7,0.03298479]
[1764328817773,0.4625,3032.6,3031.4,3.39260583]
[1764328818074,0.4625,3032.6,3030.9,3.29930724]
[1764328818075,0.1992,3031.7,3030.9,3.29930724]
[1764328818274,0.1992,3031.7,3031.0,0.36091072]
[1764328818894,0.4613,3032.4,3031.0,6.78579797]
[1764328819099,0.4613,3032.4,3031.1,0.591104]
[1764328819291,0.4613,3032.4,3031.2,0.4016]
[1764328819584,0.0012,3032.6,3031.6,1.13109811]
[1764328819844,0.0012,3032.6,3031.7,0.97159854]
[1764328820233,0.0012,3032.6,3031.8,9.8951118]
[1764328821177,0.0012,3032.6,3031.9,0.03298261]
[1764328821409,0.4625,3032.6,3032.0,0.216]
[1764328821790,0.0012,3032.6,3032.0,0.216]
[1764328822212,0.4625,3032.6,3032.1,3.29804425]
[1764328822510,0.4625,3032.6,3031.9,0.216]
[1764328822713,0.03301216,3032.5,3031.1,3.29910229]
[1764328822881,0.33163419,3032.5,3031.2,3.88094657]
[1764328823084,0.4613,3032.4,3031.2,1.30759541]
[1764328823689,0.4613,3032.4,3031.3,0.405504]
[1764328823908,0.29873623,3032.3,3031.2,0.216]
[1764328824123,0.29873487,3032.2,3031.0,0.215]
[1764328824421,0.5609,3032.4,3031.1,6.77632225]
[1764328824422,0.29898355,3032.1,3031.1,6.77632225]
[1764328824720,0.03421216,3032.6,3031.2,0.405504]
[1764328824721,0.4613,3032.2,3031.2,0.405504]
[1764328824923,0.29898678,3032.1,3031.2,0.405504]
[1764328825130,0.6867,3031.3,3031.2,1.14518662]
[1764328825422,0.0996,3031.2,3029.4,6.60196738]
[1764328825629,0.0996,3030.9,3029.4,6.81696738]
[1764328825786,0.29922717,3030.8,3029.5,0.72559411]
[1764328825986,0.29922717,3030.7,3029.6,1.11736217]
[1764328826314,0.29922717,3030.6,3029.7,6.60131366]
[1764328826609,0.29922717,3030.5,3029.8,0.216]
[1764328826802,0.4613,3030.7,3029.9,0.405504]
[1764328827118,0.29947852,3030.6,3029.9,0.405504]
[1764328827423,0.29982774,3030.5,3029.9,1.78791713]
[1764328827621,0.4613,3030.9,3030.0,0.0330033]
[1764328827924,0.2998267,3030.8,3029.8,1.13109811]
[1764328828100,0.6605,3031.3,3030.1,0.216]
[1764328828417,0.6605,3031.3,3030.2,6.6002244]
[1764328828418,0.76123844,3031.2,3030.2,6.6002244]
[1764328828622,0.76123844,3031.1,3029.9,3.30040614]
[1764328828827,0.29993844,3031.0,3030.0,0.0330033]
[1764328829032,0.29993844,3030.9,3029.9,6.9308857]
[1764328829490,0.4613,3030.8,3029.9,3.30040614]
[1764328829691,0.4613,3030.8,3029.8,3.30050142]
[1764328830009,0.4613,3030.8,3029.8,6.60104931]
[1764328830191,1.25267161,3030.8,3029.8,6.60104931]
[1764328830387,1.25267161,3030.8,3029.9,0.03300438]
[1764328830388,0.4613,3030.8,3029.9,0.03300438]
[1764328830691,0.4613,3030.7,3029.8,6.60104931]
[1764328830999,0.4613,3030.7,3029.9,0.03300438]
[1764328831214,0.4613,3030.7,3029.8,7.59121303]
[1764328831524,0.4613,3030.7,3029.9,0.03300438]
[1764328831917,0.4613,3030.7,3029.9,0.03400438]
[1764328832223,0.4613,3030.7,3030.0,9.90099009]
[1764328832428,0.4613,3030.7,3030.1,0.03300221]
[1764328832927,0.69406946,3031.0,3030.1,1.20949923]
[1764328833109,0.4613,3031.0,3030.1,0.216]
[1764328833305,1.06961724,3031.3,3030.0,6.60066006]
[1764328833306,1.15599293,3030.9,3030.0,3.30033003]
[1764328833498,1.15599293,3030.9,3030.0,6.60066006]
[1764328833499,0.69499862,3030.8,3030.0,6.60066006]
[1764328833824,0.69499862,3030.7,3030.0,6.60066006]
[1764328833996,0.87041724,3031.0,3030.0,6.60066006]
[1764328834198,2.02669358,3030.9,3029.9,3.51640843]
[1764328834427,0.8976457,3030.8,3029.9,6.81684738]
[1764328834631,0.69497634,3030.7,3029.9,6.81684738]
[1764328834799,0.69497634,3030.6,3029.9,6.81684738]
[1764328835125,0.69497634,3030.5,3029.9,6.60187478]
[1764328835303,0.4613,3030.5,3030.0,0.0330033]
[1764328835510,0.4875,3030.0,3029.9,3.30143583]
[1764328836097,1.08541724,3030.8,3029.9,6.63487916]
[1764328836098,1.33171724,3030.8,3029.9,6.63487916]
[1764328836445,0.99739147,3030.7,3029.9,10.59551597]
[1764328836610,0.99739147,3030.6,3029.9,10.77751159]
[1764328836932,0.30215514,3030.5,3029.9,10.77751159]
[1764328837131,0.30215514,3030.4,3029.9,10.77751159]
[1764328837354,0.30215514,3030.3,3030.0,1.80334527]
[1764328837509,0.03301216,3031.1,3030.0,1.80334527]